Cogmind - Beta 13 @@@ ROGUE MODE // 2024.05.22 @ 16:12:06 Player: AntinDisguise Result: Destroyed by Y-45 Defender with Heavy Assault Rifle Performance ------------- Evolutions (2) 1000 Regions Visited (5) 1000 Robots Destroyed (56) 280 Value Destroyed (1435) 1435 Prototype IDs (0) 0 Alien Tech Used (0) 0 Bonus (176) 176 TOTAL SCORE: 3891 Bonus ------- High Alert Combat Kills 2 Follower Combat Kills 174 Cogmind --------- Core Integrity 0/550 Matter 237/300 Energy 100/100 System Corruption 0% Temperature Cool (9) Movement Core (100) Ox1 Location -8/Storage Parts ------- > --- POWER (2) -------- (None) > --- PROPULSION (3) --- (None) > --- UTILITY (4) ------ Small Storage Unit Recalibrator > --- WEAPON (2) ------- (None) > --- INVENTORY (8) ---- Heat Sink Peak State ------------ > --- POWER ------------ Light Nuclear Core Light Nuclear Core > --- PROPULSION ------- Light Treads Light Treads Light Treads > --- UTILITY ---------- Heat Sink Improved Heat Sink Small Storage Unit Improved Light Armor Plating > --- WEAPON ----------- Ion Cannon Heavy Assault Rifle > --- INVENTORY -------- Light Treads Beam Rifle Heavy Assault Rifle Heavy Assault Rifle Gauss Rifle [Rating: 23] Favorites ----------- Power Ion Engine Engine Ion Engine Power Core Light Nuclear Core Propulsion Light Treads Treads Light Treads Wheel Compact Wheel Utility Small Storage Unit Device Improved Heat Sink Storage Small Storage Unit Protection Hardened Light Armor Plating Weapon Heavy Assault Rifle Energy Gun Medium Laser Energy Cannon Ion Cannon Ballistic Gun Heavy Assault Rifle Build | -11 -10 -9 -9 -8 -8 ------- Run | Yrd Mat Mat Min Mat Sto Slots Evolved 4 | . . 2 . 2 . Power 1 | . . 1 . . . Propulsion 1 | . . . . 1 . Utility 2 | . . 1 . 1 . Weapon . | . . . . . . Parts Attached 51 | 6 2 7 6 7 23 Power 12 | 1 1 1 2 2 5 Engine 9 | 1 1 1 1 2 3 Core 3 | . . . 1 . 2 Reactor . | . . . . . . Propulsion 17 | 2 . 2 2 1 10 Treads 15 | . . 2 2 1 10 Leg . | . . . . . . Wheel 2 | 2 . . . . . Hover . | . . . . . . Flight . | . . . . . . Utility 9 | 1 1 2 2 1 2 Device 4 | . . . 2 . 2 Storage 1 | 1 . . . . . Processor . | . . . . . . Hackware . | . . . . . . Protection 4 | . 1 2 . 1 . Artifact . | . . . . . . Weapon 13 | 2 . 2 . 3 6 Energy Gun 3 | 2 . . . . 1 Energy Cannon 1 | . . . . 1 . Ballistic Gun 9 | . . 2 . 2 5 Ballistic Cannon . | . . . . . . Launcher . | . . . . . . Special Weapon . | . . . . . . Impact Weapon . | . . . . . . Slashing Weapon . | . . . . . . Piercing Weapon . | . . . . . . Special Melee Weapon . | . . . . . . Unidentified Prototypes . | . . . . . . Parts Lost 35 | . . 2 4 4 25 Power 8 | . . . . 2 6 Propulsion 13 | . . 1 2 2 8 Utility 7 | . . 1 2 . 4 Weapon 7 | . . . . . 7 Highest Loss Streak 9 | . . 2 2 2 9 To Critical Strikes . | . . . . . . Average Slot Usage (%) 86 | . 95 97 85 87 76 Engine 12 | . 14 22 11 11 7 Core 5 | . . . 10 5 2 Treads 14 | . . 8 13 18 20 Wheel 4 | . 28 11 . . . Device 8 | . . . 3 18 20 Storage 10 | . 14 11 11 9 9 Protection 10 | . 10 21 13 5 2 Energy Gun 3 | . 28 5 . . 1 Energy Cannon 1 | . . . . 7 2 Ballistic Gun 15 | . . 17 22 10 10 Naked Turns . | . . . . . . Heaviest Build 33 | 14 17 33 33 29 29 Greatest Support 60 | 26 26 40 40 60 60 Greatest Overweight (x) 8 | . . 2 8 1 6 Average Overweight (x) . | . . . . . . Largest Inventory Capacity 8 | 8 8 8 8 8 8 Average Capacity 7 | 6 8 8 8 8 8 Most Carried 8 | 5 4 6 5 5 8 Average Carried 3 | 2 3 3 4 3 2 Final Capacity 8 | 8 8 8 8 8 8 Final Carried 4 | 3 4 3 3 3 1 Class Distribution -------------------- 51% | Mutant 48% | Scavenger-Mutant Dominant Class ---------------- Mutant | -10/Materials Mutant | -9/Materials Mutant | -9/Mines Scavenger-Mutant | -8/Materials Scavenger-Mutant | -8/Storage Resources | -11 -10 -9 -9 -8 -8 ----------- Run | Yrd Mat Mat Min Mat Sto Matter Collected 1356 | 175 46 283 333 62 457 Remotely . | . . . . . . Salvage Created 1903 | . 150 483 304 175 791 Parts 132 | . 8 29 21 19 55 Haulers Intercepted 2 | . . 1 . 1 . Recyclers Shooed 1 | . . 1 . . . Parts Field Recycled . | . . . . . . Retrieved Matter . | . . . . . . Parts Self-Destructed . | . . . . . . Prevented . | . . . . . . Kills | -11 -10 -9 -9 -8 -8 ------- Run | Yrd Mat Mat Min Mat Sto Combat Hostiles Destroyed 44 | . 3 9 8 5 19 Guns 36 | . 2 6 8 3 17 Cannons 4 | . . . . 2 2 AOE 3 | . . 3 . . . Classes Destroyed 13 | . 2 5 2 1 3 Worker 3 | . . . 1 1 1 Builder 1 | . . . . 1 . Hauler 2 | . . 1 . 1 . Recycler 3 | . . 3 . . . Mechanic 1 | . . . . . 1 Watcher 2 | . 1 1 . . . Swarmer 16 | . . 3 2 4 7 Grunt 15 | . 3 4 4 1 3 Brawler 1 | . . . . . 1 Duelist 3 | . . 1 1 . 1 Protector 1 | . . . 1 . . Sentry 7 | . . 1 . . 6 Hunter 1 | . . . . . 1 Best Kill Streak 5 | . 4 5 3 4 4 Combat Bots Only 5 | . 3 5 2 4 4 Max Kills in Single Turn 5 | . 1 5 1 2 1 Gunslinging . | . . . . . . Exploded 3 | . . 3 . . . Melee . | . . . . . . Uniques/NPCs Destroyed . | . . . . . . Combat | -11 -10 -9 -9 -8 -8 -------- Run | Yrd Mat Mat Min Mat Sto Hostile Shots Fired 432 | . 17 33 43 65 274 Missed 112 | . 7 9 6 22 68 Damage Taken 4330 | . 107 439 569 620 2595 Core 759 | . 10 169 20 44 516 Absorbed by Shields . | . . . . . . Core Remaining (%) 82 | 100 96 . 52 . . Volleys Fired 196 | . 15 33 33 18 97 Largest 2 | . 2 2 2 2 2 Hottest 100 | . 100 100 46 83 88 Shots Fired 354 | . 30 66 66 36 156 Gun 305 | . 30 66 66 18 125 Cannon 49 | . . . . 18 31 Launcher . | . . . . . . Special . | . . . . . . Kinetic 250 | . . 56 66 18 110 Thermal 104 | . 30 10 . 18 46 Explosive . | . . . . . . Electromagnetic . | . . . . . . Robot Hit Streak 10 | . 3 8 9 4 10 Robot Miss Streak 4 | . 3 3 1 2 4 Penetration Max 1 | . . . . . 1 Secondary Targets 2 | . . 1 . . 1 Max Gunslinging Chain 1 | . . 1 . . 1 Shots Hit Robots 222 | . 17 40 46 20 99 Core Hits 88 | . 7 19 16 12 34 Critical Kills 2 | . . . 1 . 1 Critical Parts Destroyed . | . . . . . . Critical Strikes 5 | . . 2 1 . 2 Burn 2 | . . 2 . . . Destroy 3 | . . . 1 . 2 Melee Attacks . | . . . . . . Impact . | . . . . . . Slashing . | . . . . . . Piercing . | . . . . . . Sneak Attacks . | . . . . . . Combat Hostiles . | . . . . . . Follow-up Attacks . | . . . . . . Damage Inflicted 4405 | . 228 1149 716 434 1878 Guns 3159 | . 228 598 716 180 1437 Cannons 694 | . . . . 254 440 Explosions 551 | . . 551 . . . Melee . | . . . . . . Ramming 1 | . . . . . 1 Kinetic 2698 | . . 523 716 180 1279 Thermal 1155 | . 228 75 . 254 598 Explosive 551 | . . 551 . . . Electromagnetic . | . . . . . . Impact . | . . . . . . Slashing . | . . . . . . Piercing . | . . . . . . Highest Corruption . | . . . . . . Average Corruption . | . . . . . . Corruption Purged . | . . . . . . Corruption Blocked . | . . . . . . Overload Shots . | . . . . . . Overflow Damage 85 | . . 85 . . . Projectiles . | . . . . . . Explosions 85 | . . 85 . . . Melee . | . . . . . . Knockbacks . | . . . . . . Impact . | . . . . . . Kinetic . | . . . . . . Secondary . | . . . . . . Self-Inflicted Damage 150 | . . 150 . . . Shots 2 | . . 2 . . . Rammed 1 | . . . . . 1 Targets Rammed 1 | . . . . . 1 Kicked . | . . . . . . Crushed . | . . . . . . Highest Temperature 358 | . 358 213 337 2 39 Average Temperature 113 | . 141 51 137 2 18 Received Heat Transfer 1422 | . 60 54 174 324 810 Effects 8 | . 1 . 7 . . Energy Bleed 3 | . . . 3 . . Interference 3 | . . . 3 . . Matter Decay 1 | . . . 1 . . Short Circuit 1 | . 1 . . . . Siege Activations . | . . . . . . Robots Corrupted . | . . . . . . Combat Hostiles . | . . . . . . Parts Fried . | . . . . . . Impact Corruptions . | . . . . . . Robots Melted 1 | . 1 . . . . Combat Hostiles 1 | . 1 . . . . Parts Melted 4 | . . 2 . . 2 Heat Transferred 2553 | . 666 370 . 407 1110 Parts Sabotaged . | . . . . . . Parts Stolen . | . . . . . . Parts Stripped . | . . . . . . Power Chain Reactions . | . . . . . . Alert | -11 -10 -9 -9 -8 -8 ------- Run | Yrd Mat Mat Min Mat Sto Peak Influence 415 | . 138 415 247 141 303 Initial 83 | . . 57 83 46 50 Average 148 | . 60 201 170 55 153 Maximum Alert Level 2 | . . 2 1 . 1 Low Security (%) 65 | 100 100 43 51 100 74 Level 1 34 | . . 54 48 . 25 Level 2 . | . . 1 . . . Level 3 . | . . . . . . Level 4 . | . . . . . . Level 5 . | . . . . . . High Security . | . . . . . . Max Security . | . . . . . . Squads Dispatched 15 | . 3 2 1 1 8 Investigation 3 | . 1 . . . 2 Extermination . | . . . . . . Reinforcement 6 | . 2 2 . 1 1 Assault 1 | . . . 1 . . Garrison 5 | . . . . . 5 Intercept . | . . . . . . Searches Triggered . | . . . . . . Construction Impeded . | . . . . . . Haulers Reinforced . | . . . . . . Active Scanning Responses . | . . . . . . Cargo Convoy Interrupts . | . . . . . . Stealth | -11 -10 -9 -9 -8 -8 --------- Run | Yrd Mat Mat Min Mat Sto Distress Signals 10 | . 1 1 . 3 5 Communications Jammed . | . . . . . . Distress Signals . | . . . . . . Times Spotted 89 | . 8 13 20 12 36 Peak Tracking Total 14 | . 3 4 5 6 14 Tactical Retreats 9 | . 2 1 4 1 1 Traps | -11 -10 -9 -9 -8 -8 ------- Run | Yrd Mat Mat Min Mat Sto Traps Triggered 1 | . 1 . . . . Indirectly . | . . . . . . Trap Hack Attempts . | . . . . . . Triggered . | . . . . . . Disarmed . | . . . . . . Reprogrammed . | . . . . . . Reused . | . . . . . . Traps Extracted . | . . . . . . Installed . | . . . . . . Triggered . | . . . . . . Machines | -11 -10 -9 -9 -8 -8 ---------- Run | Yrd Mat Mat Min Mat Sto Machines Disabled 4 | . . 2 . . 2 Max in Single Turn 2 | . . 2 . . 1 Machines Repaired . | . . . . . . Machines Dismantled . | . . . . . . Machines Sabotaged . | . . . . . . Overloaded Fab Kills . | . . . . . . Hacking | -11 -10 -9 -9 -8 -8 --------- Run | Yrd Mat Mat Min Mat Sto Machines Accessed 14 | . 3 3 . 1 7 Terminals 11 | . 2 2 . 1 6 Fabricators . | . . . . . . Repair Stations . | . . . . . . Recycling Units 2 | . 1 1 . . . Scanalyzers . | . . . . . . Garrison Access 1 | . . . . . 1 Total Hacks 34 | . 5 6 . 4 19 Successful 11 | . 3 3 . 2 3 Failed 23 | . 2 3 . 2 16 Catastrophic 5 | . . 1 . . 4 Database Lockouts . | . . . . . . Manual . | . . . . . . Terminals 27 | . 4 4 . 4 15 Fabricators . | . . . . . . Repair Stations . | . . . . . . Recycling Units 3 | . 1 2 . . . Scanalyzers . | . . . . . . Garrison Access 4 | . . . . . 4 Terminal Hacks 8 | . 2 2 . 2 2 Robot Analysis 1 | . 1 . . . . Unreport Threat 2 | . . . . 2 . Locate Traps 2 | . . 1 . . 1 Maintenance Status 1 | . 1 . . . . Hauler Manifests 1 | . . 1 . . . Zone Layout 1 | . . . . . 1 Fabricator Hacks . | . . . . . . Repair Station Hacks . | . . . . . . Recycling Unit Hacks 2 | . 1 1 . . . Process 2 | . 1 1 . . . Scanalyzer . | . . . . . . Garrison Access Hacks 1 | . . . . . 1 Unlock Access 1 | . . . . . 1 Unauthorized Hacks . | . . . . . . Terminals . | . . . . . . Fabricators . | . . . . . . Repair Stations . | . . . . . . Recycling Units . | . . . . . . Scanalyzers . | . . . . . . Garrison Access . | . . . . . . Data Cores Recovered . | . . . . . . Used . | . . . . . . Hacking Detections 10 | . 2 2 . . 6 Full Trace Events 3 | . . . . . 3 Feedback Events . | . . . . . . Feedback Blocked . | . . . . . . Robot Schematics Acquired . | . . . . . . Robots Built . | . . . . . . Authchips . | . . . . . . Time . | . . . . . . Total Robot Build Rating . | . . . . . . Part Schematics Acquired . | . . . . . . Parts Built . | . . . . . . Authchips . | . . . . . . Time . | . . . . . . Total Part Build Rating . | . . . . . . Parts Repaired . | . . . . . . Time . | . . . . . . Parts Recycled . | . . . . . . Recycled Matter 24 | . 24 . . . . Retrieved Matter . | . . . . . . Retrieved Components . | . . . . . . Parts Scanalyzed . | . . . . . . Part Schematics Acquired . | . . . . . . Parts Damaged . | . . . . . . Bothacking | -11 -10 -9 -9 -8 -8 ------------ Run | Yrd Mat Mat Min Mat Sto Used RIF Installer . | . . . . . . Robots Hacked . | . . . . . . Non-combat . | . . . . . . Combat . | . . . . . . Robot Hacks Applied . | . . . . . . Relay Couplers Released . | . . . . . . Fabnet Peak Effective % . | . . . . . . Robots Rewired . | . . . . . . Allies Hacked . | . . . . . . Hacks Repelled . | . . . . . . Allies | -11 -10 -9 -9 -8 -8 -------- Run | Yrd Mat Mat Min Mat Sto Total Allies 1 | . . . 1 . . Largest Group 1 | . . . 1 . . Highest-Rated Group 31 | . . . 31 . . Highest-Rated Ally 31 | . . . 31 . . Total Orders . | . . . . . . Ally Attacks 27 | . . . 27 . . Total Damage 373 | . . . 373 . . Kills 8 | . . . 8 . . Allies Corrupted . | . . . . . . Allies Melted . | . . . . . . Intel | -11 -10 -9 -9 -8 -8 ------- Run | Yrd Mat Mat Min Mat Sto Robot Analysis Total 1 | . 1 . . . . Derelict Logs Recovered 1 | . . . 1 . . Drone Launches . | . . . . . . Drone Recoveries . | . . . . . . Exploration | -11 -10 -9 -9 -8 -8 ------------- Run | Yrd Mat Mat Min Mat Sto Turns Passed 2790 | 41 214 442 1118 275 700 Spaces Moved 1235 | 33 153 228 466 124 231 Core 12 | 7 . . 1 . 4 Treads 885 | . . 69 465 124 227 Legs . | . . . . . . Wheels 338 | 26 153 159 . . . Hover . | . . . . . . Flight . | . . . . . . Fastest Speed 50 | 50 90 90 160 160 160 Average Speed 163 | 81 90 123 212 161 165 Slowest Speed 450 | 90 90 160 450 240 350 Overloaded Moves . | . . . . . . Propulsion Burnouts . | . . . . . . Robots Hopped . | . . . . . . Cave-ins Triggered . | . . . . . . Exploration Rate (%) 26 | 4 30 21 47 18 38 Regions Visited 5 Branch Regions 2 Pre-discovered Areas 1 | . . . 1 . . Known Exits Taken . | . . . . . . Unknown Exits Taken 5 | 1 1 1 1 1 . Scrap Searched . | . . . . . . Spaces Dug 3 | . . . . . 3 Terrain Destroyed 48 | . . 39 . 3 6 Melee . | . . . . . . Projectile 9 | . . . . 3 6 AOE 39 | . . 39 . . . Terrain Rammed . | . . . . . . Walls Destroyed . | . . . . . . Machines Disabled . | . . . . . . Actions | -11 -10 -9 -9 -8 -8 --------- Run | Yrd Mat Mat Min Mat Sto Total 1665 | 47 200 329 535 163 391 Wait 128 | . 25 53 25 7 18 Move 1230 | 32 152 227 465 123 231 Hop . | . . . . . . Pick Up 50 | 9 4 6 5 6 20 Fast Attach . | . . . . . . Attach 45 | 6 2 7 5 4 21 Detach . | . . . . . . Swap 6 | . . . 1 3 2 Drop 9 | . 2 3 1 2 1 Fire 196 | . 15 33 33 18 97 Melee . | . . . . . . Ram . | . . . . . . Kick . | . . . . . . Crush 1 | . . . . . 1 Escape Stasis . | . . . . . . Rewire . | . . . . . . Trap . | . . . . . . Miscellaneous . | . . . . . . Route ------- -11/Scrapyard -10/Materials -9/Materials -9/Mines (discovered 2 exits: *Mat / [*Exi]) -8/Materials -8/Storage (discovered 1 exit: Gar) History --------- Turn | Location | Event 7 | -11/Scrapyard | Discovered new exit (range 15) 42 | -11/Scrapyard | Entered Materials 240 | -10/Materials | Discovered new exit (range 10) 256 | -10/Materials | Entered another Materials area 256 | -9/Materials | Evolved 2 slots: Power x1, Utility x1 314 | -9/Materials | Build established: Mutant 492 | -9/Materials | Discovered new exit (range 15) 698 | -9/Materials | Entered Mines 699 | -9/Mines | Met a Derelict testing a Signal Generator 714 | -9/Mines | A Derelict revealed a hidden shortcut to a safe place 1052 | -9/Mines | Deemed a non-threat by the Exiles lab entrance 1052 | -9/Mines | Discovered new exit (range 5) 1271 | -9/Mines | Learned location of Zion (-7) 1271 | -9/Mines | Discovered new exit (range 5) 1816 | -9/Mines | Entered Materials 1816 | -8/Materials | Evolved 2 slots: Propulsion x1, Utility x1 1962 | -8/Materials | Build established: Scavenger-Mutant 2055 | -8/Materials | Discovered new exit (range 15) 2091 | -8/Materials | Entered Storage 2280 | -8/Storage | Garrison activated, responded to threat 2358 | -8/Storage | Lost 9 parts (2p3n2u2w) 2404 | -8/Storage | Core integrity fell below 50% 2523 | -8/Storage | Identified exit to Garrison 2607 | -8/Storage | Core integrity fell below 20% 2658 | -8/Storage | Garrison activated, responded to threat 2695 | -8/Storage | Lost 6 parts (1p2n1u2w) 2791 | -8/Storage | Destroyed by Y-45 Defender with Heavy Assault Rifle Last Messages --------------- ALERT: Activating Garrison Access S001. Acquired 14 matter. Hvy. Assault Rifle destroyed. S-10 Pest destroyed. Acquired 18 matter. Acquired Lgt. Ion Engine. Acquired 14 matter. W-25 Informer sends out distress signal. S-10 Pest destroyed. Lgt. Treads destroyed. S-10 Pest destroyed. Acquired 19 matter. W-25 Informer sends out distress signal. Lgt. Ion Engine destroyed. Imp. Heat Sink destroyed. Hvy. Assault Rifle destroyed. S-10 Pest destroyed. Lgt. Ion Engine destroyed. Slammed into S-10 Pest. Lgt. Treads destroyed. Map ----- +----------------------------------------------------+ | ?????????????????????????????????????????????????? | | ?????????????????????????????????????????????????# | | ????????????????????????#+#????????????????????? | | ?????????????????????? ??????????????????????! | | ??????????????????????# ??????????????????????? | | ??????????????????????# ??????????????????????? | | ??????????????????????# #?????????????????????? | | ??????????????????????# #?????????????????????? | | ??????????????????????# #########???????# ##??? | | ??????????????????????# ## #???????# ## | | ??????????????????????# ## """" #???????# % | | ??????????????????????# ## """" #???????# = | | ?????????????########## ## """" #???????# | | ???????????? ## """" #???????# | | ????????????## ## #???????# ## | | ???????????? #####/########??# # | | ?????????????? a + | | ?????????????????????### ###########+##?# | | ???????????????????????##s### #??????????????# | | ????????????????????????#g#?# #??????????????# | | ????????????????????????#g#?#### #??????????????# | | ????????????????????????#s#????# #??????????????## | | ????????????????????????#Y#????# #???????????????# | | ????????????????????????#s#????# #???????????????# | | ?????????????????????####s####?# #???????????????# | | ?????????????????????# Y @s! #?# #???????????????# | | ?????????????????????## s #?# #???????????????# | | ??????????????????????# """#?# ################# | | ??????????????????????# """#?# | | ??????????????????????# """#?# = | | ??????????????????????# #?# = ^ | | ??????????????????????##"T"###?#[%%= | | ???????????????????????#"""#####+##+############## | | ???????????????????????##### =%=[ #???????????? | | ???????????????????????????# *[ T=##??????????? | | ???????????????????????????# = #??????????? | | ???????????????????????????# = ##??????????? | | ???????????????????????????###########???????????? | | | | | | | | | | | | | | | | | | | | | | | | | +----------------------------------------------------+ Best States ------------- Heat Dissipation 55 Energy Generation 24 Energy Capacity 400 Matter Stores 300 Matter Capacity 300 Sight Range 16 Terrain Scan Density 10 Armor Coverage 375 Evasion (%) 50 Recoil Reduction 3 Item Schematics ----------------- None Robot Schematics ------------------ None Fabricated ------------ Nothing Alien Tech Used ----------------- None Achievements -------------- None Challenges ------------ None Game ------ Seed SwordPlatingUnit Manual? 0 Play Time 00:26:56 Cumulative 32.1 hours Start 2024.05.22 @ 15:47:57 End 2024.05.22 @ 16:12:06 Sessions 1 Manual Loads 0 Difficulty Rogue Special Mode None Game No. 89 Rogue 87 Adventurer 2 Explorer 0 Win Type - Total 0 Types 0/0/0/0/0/0/0/0/0 Lore% 23 Gallery% 33 Achievement% 23 Wizard Run 0 Options --------- Layout 1 ASCII 0 Keyboard 0 Movement Mouse Keybinds 0 Fullscreen 1 Font 16/SmallcapsGlow Map View 27x19 Zoom Use 92% Tactical HUD 0 Map Filters NONE Filters NONE Steam 1 RUN: c7999514-ed9f-44e7-b10b-7cfc65244dff